[Event "Titled Tuesday Blitz March 21 Early 2023"]
[White "Shapiro, Viktor"]
[Black "Kostiukov, Alexandr"]
[WhiteFideId "4175700"]
[BlackFideId "14108100"]
[WhiteElo "2152"]
[BlackElo "2202"]
[Result "1-0"]
[Round "08"]
[TimeControl "180+2"]
[Date "2023.03.21"]
[WhiteClock "0:00:14"]
[BlackClock "0:00:37"]

1. c4 {[%clk 0:01:59]}  g6 {[%clk 0:02:57]} 2. Nc3 {[%clk 0:02:00]}  Bg7 {[%clk 0:02:58]} 3. g3 {[%clk 0:02:00]}  Nf6 {[%clk 0:02:57]} 4. Bg2 {[%clk 0:02:01]}  O-O {[%clk 0:02:58]} 5. e3 {[%clk 0:02:02]}  d6 {[%clk 0:02:53]} 6. Nge2 {[%clk 0:02:02]}  e5 {[%clk 0:02:54]} 7. d4 {[%clk 0:02:02]}  c5 {[%clk 0:02:53]} 8. O-O {[%clk 0:02:00]}  Nc6 {[%clk 0:02:53]} 9. h3 {[%clk 0:02:01]}  Qe7 {[%clk 0:02:38]} 10. Nd5 {[%clk 0:01:58]}  Qd8 {[%clk 0:02:29]} 11. dxc5 {[%clk 0:01:54]}  dxc5 {[%clk 0:02:28]} 12. b3 {[%clk 0:01:51]}  e4 {[%clk 0:02:17]} 13. Bb2 {[%clk 0:01:50]}  Nxd5 {[%clk 0:02:13]} 14. Bxg7 {[%clk 0:01:50]}  Nxe3 {[%clk 0:02:05]} 15. Qxd8 {[%clk 0:01:44]}  Rxd8 {[%clk 0:02:05]} 16. fxe3 {[%clk 0:01:44]}  Kxg7 {[%clk 0:02:04]} 17. Nc3 {[%clk 0:01:29]}  Rd3 {[%clk 0:02:00]} 18. Nxe4 {[%clk 0:01:28]}  Rxe3 {[%clk 0:02:00]} 19. Kh2 {[%clk 0:01:23]}  Re2 {[%clk 0:01:50]} 20. Nxc5 {[%clk 0:01:19]}  Rb8 {[%clk 0:01:35]} 21. a3 {[%clk 0:01:07]}  b6 {[%clk 0:01:33]} 22. Nd3 {[%clk 0:01:01]}  Na5 {[%clk 0:01:32]} 23. Rae1 {[%clk 0:00:49]}  Rxe1 {[%clk 0:01:26]} 24. Rxe1 {[%clk 0:00:49]}  Be6 {[%clk 0:01:21]} 25. Nf4 {[%clk 0:00:47]}  Bf5 {[%clk 0:01:14]} 26. Re7 {[%clk 0:00:43]}  a6 {[%clk 0:01:14]} 27. Bd5 {[%clk 0:00:41]}  Rf8 {[%clk 0:01:12]} 28. b4 {[%clk 0:00:41]}  Nb3 {[%clk 0:01:12]} 29. g4 {[%clk 0:00:40]}  Bc8 {[%clk 0:01:10]} 30. Rc7 {[%clk 0:00:40]}  Nd4 {[%clk 0:01:09]} 31. Kg3 {[%clk 0:00:37]}  Kf6 {[%clk 0:01:07]} 32. h4 {[%clk 0:00:37]}  h6 {[%clk 0:01:06]} 33. Bb7 {[%clk 0:00:25]}  Be6 {[%clk 0:00:58]} 34. Bxa6 {[%clk 0:00:21]}  g5 {[%clk 0:00:57]} 35. hxg5+ {[%clk 0:00:21]}  hxg5 {[%clk 0:00:57]} 36. Nh5+ {[%clk 0:00:20]}  Ke5 {[%clk 0:00:57]} 37. c5 {[%clk 0:00:19]}  bxc5 {[%clk 0:00:55]} 38. Rxc5+ {[%clk 0:00:20]}  Ke4 {[%clk 0:00:55]} 39. Bc4 {[%clk 0:00:20]}  Ra8 {[%clk 0:00:52]} 40. Nf6+ {[%clk 0:00:20]}  Ke3 {[%clk 0:00:51]} 41. Bxe6 {[%clk 0:00:20]}  fxe6 {[%clk 0:00:50]} 42. Rc3+ {[%clk 0:00:20]}  Kd2 {[%clk 0:00:49]} 43. Ne4+ {[%clk 0:00:19]}  Ke2 {[%clk 0:00:50]} 44. Nc5 {[%clk 0:00:16]}  e5 {[%clk 0:00:50]} 45. a4 {[%clk 0:00:14]}  Kd2 {[%clk 0:00:50]} 46. Rd3+ {[%clk 0:00:14]}  Ke2 {[%clk 0:00:49]} 47. Re3+ {[%clk 0:00:15]}  Kd2 {[%clk 0:00:48]} 48. Rxe5 {[%clk 0:00:15]}  Rf8 {[%clk 0:00:47]} 49. Rd5 {[%clk 0:00:15]}  Ke3 {[%clk 0:00:48]} 50. Rxd4 {[%clk 0:00:14]}  Rf3+ {[%clk 0:00:46]} 51. Kg2 {[%clk 0:00:15]}  Rf2+ {[%clk 0:00:46]} 52. Kg1 {[%clk 0:00:15]}  Rb2 {[%clk 0:00:46]} 53. Re4+ {[%clk 0:00:15]}  Kf3 {[%clk 0:00:46]} 54. Rc4 {[%clk 0:00:13]}  Rb1+ {[%clk 0:00:46]} 55. Kh2 {[%clk 0:00:13]}  Rb2+ {[%clk 0:00:46]} 56. Kh3 {[%clk 0:00:14]}  Rb1 {[%clk 0:00:46]} 57. Rc3+ {[%clk 0:00:14]}  Kf4 {[%clk 0:00:46]} 58. Rb3 {[%clk 0:00:14]}  Rc1 {[%clk 0:00:45]} 59. a5 {[%clk 0:00:14]}  Ra1 {[%clk 0:00:45]} 60. Kg2 {[%clk 0:00:14]}  Ra2+ {[%clk 0:00:45]} 61. Kf1 {[%clk 0:00:14]}  Ra1+ {[%clk 0:00:44]} 62. Ke2 {[%clk 0:00:15]}  Ra2+ {[%clk 0:00:45]} 63. Kd3 {[%clk 0:00:14]}  Kxg4 {[%clk 0:00:46]} 64. a6 {[%clk 0:00:14]}  Kh3 {[%clk 0:00:45]} 65. b5 {[%clk 0:00:15]}  g4 {[%clk 0:00:45]} 66. Ne4 {[%clk 0:00:15]}  Ra5 {[%clk 0:00:42]} 67. Kc4+ {[%clk 0:00:15]}  Kh4 {[%clk 0:00:40]} 68. Kc5 {[%clk 0:00:15]}  Ra4 {[%clk 0:00:40]} 69. Ng3 {[%clk 0:00:14]}  Kh3 {[%clk 0:00:37]} 70. Kb6 {[%clk 0:00:14]}  Kg2 {[%clk 0:00:36]} 71. a7 {[%clk 0:00:14]}  Kf2 {[%clk 0:00:37]} 72. Kb7 {[%clk 0:00:14]}  Rb4 {[%clk 0:00:37]} 73. Rxb4 {[%clk 0:00:14]} 1-0


[Site "https://www.chess.com"]

[Event "Titled Tuesday Blitz March 21 Early 2023"]
[White "Omariev, Maksim"]
[Black "Fernandez Hernandez, Gerardo"]
[WhiteFideId "4193423"]
[BlackFideId "2207400"]
[WhiteElo "2471"]
[BlackElo "2227"]
[Result "1-0"]
[Round "08"]
[TimeControl "180+2"]
[Date "2023.03.21"]
[WhiteClock "0:00:09"]
[BlackClock "0:00:01"]

1. e4 {[%clk 0:02:53]}  c5 {[%clk 0:02:58]} 2. Nf3 {[%clk 0:02:53]}  Nc6 {[%clk 0:02:58]} 3. d4 {[%clk 0:02:53]}  cxd4 {[%clk 0:02:59]} 4. Nxd4 {[%clk 0:02:54]}  e5 {[%clk 0:02:58]} 5. Nb5 {[%clk 0:02:48]}  a6 {[%clk 0:02:57]} 6. Nd6+ {[%clk 0:02:48]}  Bxd6 {[%clk 0:02:57]} 7. Qxd6 {[%clk 0:02:49]}  Qe7 {[%clk 0:02:58]} 8. Qxe7+ {[%clk 0:02:49]}  Ngxe7 {[%clk 0:02:59]} 9. c4 {[%clk 0:02:44]}  Nd4 {[%clk 0:02:52]} 10. Bd3 {[%clk 0:02:38]}  d6 {[%clk 0:02:42]} 11. O-O {[%clk 0:02:33]}  f5 {[%clk 0:02:40]} 12. Nc3 {[%clk 0:02:32]}  f4 {[%clk 0:02:30]} 13. b3 {[%clk 0:02:18]}  O-O {[%clk 0:02:21]} 14. Ba3 {[%clk 0:02:17]}  Rf6 {[%clk 0:02:16]} 15. f3 {[%clk 0:01:49]}  Bd7 {[%clk 0:02:01]} 16. Rfd1 {[%clk 0:01:48]}  g5 {[%clk 0:01:43]} 17. Rac1 {[%clk 0:01:43]}  Rc8 {[%clk 0:01:29]} 18. h3 {[%clk 0:01:26]}  h5 {[%clk 0:01:22]} 19. Nd5 {[%clk 0:01:16]}  Nxd5 {[%clk 0:01:21]} 20. cxd5 {[%clk 0:01:17]}  Rxc1 {[%clk 0:01:10]} 21. Rxc1 {[%clk 0:01:18]}  Bb5 {[%clk 0:01:08]} 22. Bxb5 {[%clk 0:01:15]}  Nxb5 {[%clk 0:01:09]} 23. Bb2 {[%clk 0:01:09]}  Rf7 {[%clk 0:01:05]} 24. a4 {[%clk 0:01:09]}  Nd4 {[%clk 0:00:57]} 25. Bxd4 {[%clk 0:01:08]}  exd4 {[%clk 0:00:58]} 26. Kf2 {[%clk 0:01:09]}  Kg7 {[%clk 0:00:47]} 27. Rc4 {[%clk 0:01:03]}  Kf6 {[%clk 0:00:46]} 28. Ke2 {[%clk 0:00:29]}  Ke5 {[%clk 0:00:46]} 29. Kd3 {[%clk 0:00:30]}  g4 {[%clk 0:00:44]} 30. hxg4 {[%clk 0:00:31]}  hxg4 {[%clk 0:00:44]} 31. Rxd4 {[%clk 0:00:32]}  Rh7 {[%clk 0:00:31]} 32. Rc4 {[%clk 0:00:32]}  Rh2 {[%clk 0:00:20]} 33. Rc2 {[%clk 0:00:28]}  g3 {[%clk 0:00:11]} 34. a5 {[%clk 0:00:26]}  Rh1 {[%clk 0:00:07]} 35. Kc4 {[%clk 0:00:16]}  Rf1 {[%clk 0:00:06]} 36. b4 {[%clk 0:00:14]}  Rf2 {[%clk 0:00:05]} 37. Kd3 {[%clk 0:00:14]}  Rf1 {[%clk 0:00:01]} 38. Ke2 {[%clk 0:00:13]}  Rb1 {[%clk 0:00:01]} 39. Rc7 {[%clk 0:00:08]}  Rxb4 {[%clk 0:00:01]} 40. Re7+ {[%clk 0:00:08]}  Kd4 {[%clk 0:00:01]} 41. Re6 {[%clk 0:00:09]} 1-0


[Site "https://www.chess.com"]

[Event "Titled Tuesday Blitz March 21 Early 2023"]
[White "Loiacono, Antonio"]
[Black "Delorme, Alban"]
[WhiteFideId "895415"]
[BlackFideId "623636"]
[WhiteElo "2257"]
[BlackElo "2196"]
[Result "1-0"]
[Round "08"]
[TimeControl "180+2"]
[Date "2023.03.21"]
[WhiteClock "0:01:11"]
[BlackClock "0:00:01"]

1. e4 {[%clk 0:03:00]}  c5 {[%clk 0:02:58]} 2. Nf3 {[%clk 0:03:00]}  d6 {[%clk 0:02:58]} 3. d4 {[%clk 0:03:00]}  cxd4 {[%clk 0:02:58]} 4. Nxd4 {[%clk 0:03:01]}  Nf6 {[%clk 0:02:58]} 5. Nc3 {[%clk 0:03:01]}  a6 {[%clk 0:02:58]} 6. a4 {[%clk 0:03:02]}  e5 {[%clk 0:02:58]} 7. Nf3 {[%clk 0:03:02]}  Be7 {[%clk 0:02:59]} 8. Bc4 {[%clk 0:03:02]}  Be6 {[%clk 0:02:59]} 9. Bb3 {[%clk 0:03:00]}  O-O {[%clk 0:02:58]} 10. O-O {[%clk 0:03:00]}  Bxb3 {[%clk 0:02:52]} 11. cxb3 {[%clk 0:03:00]}  Nbd7 {[%clk 0:02:52]} 12. Bg5 {[%clk 0:02:57]}  Rc8 {[%clk 0:02:47]} 13. Nd2 {[%clk 0:02:52]}  h6 {[%clk 0:02:44]} 14. Bxf6 {[%clk 0:02:52]}  Nxf6 {[%clk 0:02:40]} 15. Nc4 {[%clk 0:02:52]}  Qc7 {[%clk 0:02:34]} 16. Ne3 {[%clk 0:02:50]}  Rfe8 {[%clk 0:02:14]} 17. Ncd5 {[%clk 0:02:47]}  Nxd5 {[%clk 0:02:14]} 18. Nxd5 {[%clk 0:02:48]}  Qb8 {[%clk 0:02:12]} 19. Qd3 {[%clk 0:02:42]}  Bg5 {[%clk 0:02:10]} 20. Rfd1 {[%clk 0:02:40]}  Red8 {[%clk 0:02:05]} 21. g3 {[%clk 0:02:39]}  Re8 {[%clk 0:01:53]} 22. Nb6 {[%clk 0:02:29]}  Rcd8 {[%clk 0:01:45]} 23. h4 {[%clk 0:02:26]}  Be7 {[%clk 0:01:43]} 24. Nd5 {[%clk 0:02:26]}  Bf8 {[%clk 0:01:43]} 25. Rac1 {[%clk 0:02:25]}  Rc8 {[%clk 0:01:42]} 26. Kg2 {[%clk 0:02:16]}  Rc6 {[%clk 0:01:38]} 27. Nb4 {[%clk 0:02:12]}  Rxc1 {[%clk 0:01:24]} 28. Rxc1 {[%clk 0:02:12]}  g6 {[%clk 0:01:14]} 29. Nd5 {[%clk 0:02:10]}  Bg7 {[%clk 0:01:12]} 30. Rc7 {[%clk 0:02:07]}  Rf8 {[%clk 0:01:05]} 31. Qc4 {[%clk 0:02:03]}  Kh7 {[%clk 0:01:00]} 32. h5 {[%clk 0:01:55]}  b5 {[%clk 0:00:49]} 33. axb5 {[%clk 0:01:53]}  axb5 {[%clk 0:00:49]} 34. Qc6 {[%clk 0:01:53]}  Qd8 {[%clk 0:00:45]} 35. Re7 {[%clk 0:01:42]}  gxh5 {[%clk 0:00:35]} 36. Qd7 {[%clk 0:01:41]}  Qa5 {[%clk 0:00:26]} 37. Rxf7 {[%clk 0:01:37]}  Rxf7 {[%clk 0:00:20]} 38. Qxf7 {[%clk 0:01:38]}  Qa8 {[%clk 0:00:15]} 39. Qxh5 {[%clk 0:01:34]}  Qf8 {[%clk 0:00:14]} 40. g4 {[%clk 0:01:28]}  Qa8 {[%clk 0:00:05]} 41. Qf5+ {[%clk 0:01:28]}  Kg8 {[%clk 0:00:04]} 42. Qe6+ {[%clk 0:01:28]}  Kh8 {[%clk 0:00:04]} 43. Qxd6 {[%clk 0:01:27]}  Qa1 {[%clk 0:00:04]} 44. Qd8+ {[%clk 0:01:21]}  Kh7 {[%clk 0:00:04]} 45. Qd7 {[%clk 0:01:21]}  Qe1 {[%clk 0:00:01]} 46. Qf5+ {[%clk 0:01:21]}  Kh8 {[%clk 0:00:01]} 47. Ne3 {[%clk 0:01:16]}  Qd2 {[%clk 0:00:01]} 48. Qf7 {[%clk 0:01:11]}  Qxb2 {[%clk 0:00:01]} 49. Nf5 {[%clk 0:01:11]} 1-0


[Site "https://www.chess.com"]

[Event "Titled Tuesday Blitz March 21 Early 2023"]
[White "Yelisieiev, Yevhenii"]
[Black "Forgacs, Attila Jr."]
[WhiteFideId "14139642"]
[BlackFideId "773654"]
[WhiteElo "2447"]
[BlackElo "2168"]
[Result "0-1"]
[Round "08"]
[TimeControl "180+2"]
[Date "2023.03.21"]
[WhiteClock "0:00:14"]
[BlackClock "0:00:05"]

1. d4 {[%clk 0:03:00]}  Nf6 {[%clk 0:02:58]} 2. Nf3 {[%clk 0:03:01]}  g6 {[%clk 0:02:59]} 3. g3 {[%clk 0:03:01]}  Bg7 {[%clk 0:02:59]} 4. Bg2 {[%clk 0:03:02]}  O-O {[%clk 0:03:00]} 5. O-O {[%clk 0:03:02]}  d6 {[%clk 0:03:01]} 6. b3 {[%clk 0:03:03]}  Nc6 {[%clk 0:03:02]} 7. Bb2 {[%clk 0:03:03]}  e5 {[%clk 0:03:02]} 8. dxe5 {[%clk 0:03:04]}  Nd7 {[%clk 0:02:59]} 9. c4 {[%clk 0:03:04]}  dxe5 {[%clk 0:02:55]} 10. Nc3 {[%clk 0:03:03]}  Nc5 {[%clk 0:02:41]} 11. Qxd8 {[%clk 0:03:00]}  Rxd8 {[%clk 0:02:41]} 12. Rfd1 {[%clk 0:02:33]}  Bf5 {[%clk 0:02:21]} 13. Nh4 {[%clk 0:02:31]}  Be6 {[%clk 0:02:18]} 14. Nd5 {[%clk 0:02:24]}  Rd7 {[%clk 0:01:59]} 15. b4 {[%clk 0:01:57]}  Na4 {[%clk 0:01:52]} 16. Ba3 {[%clk 0:01:48]}  Nd4 {[%clk 0:01:39]} 17. Ne3 {[%clk 0:01:26]}  Nxe2+ {[%clk 0:01:35]} 18. Kf1 {[%clk 0:01:26]}  Rxd1+ {[%clk 0:01:25]} 19. Rxd1 {[%clk 0:01:27]}  Nec3 {[%clk 0:01:17]} 20. Bxb7 {[%clk 0:01:05]}  Nxd1 {[%clk 0:01:17]} 21. Bxa8 {[%clk 0:01:05]}  Nxe3+ {[%clk 0:01:18]} 22. fxe3 {[%clk 0:01:05]}  Bxc4+ {[%clk 0:01:18]} 23. Ke1 {[%clk 0:01:01]}  f5 {[%clk 0:01:11]} 24. Nf3 {[%clk 0:00:40]}  Bxa2 {[%clk 0:01:08]} 25. b5 {[%clk 0:00:37]}  Bc4 {[%clk 0:00:59]} 26. Bc6 {[%clk 0:00:36]}  Nc3 {[%clk 0:00:56]} 27. Bc5 {[%clk 0:00:24]}  Nxb5 {[%clk 0:00:51]} 28. Nd2 {[%clk 0:00:21]}  Bd3 {[%clk 0:00:46]} 29. Bd5+ {[%clk 0:00:20]}  Kh8 {[%clk 0:00:46]} 30. Nf3 {[%clk 0:00:18]}  h6 {[%clk 0:00:40]} 31. Kd2 {[%clk 0:00:18]}  e4 {[%clk 0:00:38]} 32. Nh4 {[%clk 0:00:18]}  Kh7 {[%clk 0:00:29]} 33. Bf7 {[%clk 0:00:17]}  Bc3+ {[%clk 0:00:25]} 34. Kc1 {[%clk 0:00:17]}  g5 {[%clk 0:00:19]} 35. Nxf5 {[%clk 0:00:18]}  a5 {[%clk 0:00:17]} 36. h4 {[%clk 0:00:17]}  gxh4 {[%clk 0:00:17]} 37. gxh4 {[%clk 0:00:18]}  a4 {[%clk 0:00:17]} 38. h5 {[%clk 0:00:17]}  a3 {[%clk 0:00:17]} 39. Bf8 {[%clk 0:00:12]}  Nd6 {[%clk 0:00:14]} 40. Nxd6 {[%clk 0:00:07]}  cxd6 {[%clk 0:00:14]} 41. Bxd6 {[%clk 0:00:08]}  Bb2+ {[%clk 0:00:14]} 42. Kd2 {[%clk 0:00:08]}  Kg7 {[%clk 0:00:14]} 43. Bd5 {[%clk 0:00:07]}  Kf6 {[%clk 0:00:14]} 44. Ke1 {[%clk 0:00:07]}  Kg5 {[%clk 0:00:14]} 45. Kf2 {[%clk 0:00:08]}  Kxh5 {[%clk 0:00:14]} 46. Kg3 {[%clk 0:00:08]}  Kg5 {[%clk 0:00:15]} 47. Bf4+ {[%clk 0:00:08]}  Kg6 {[%clk 0:00:14]} 48. Bd6 {[%clk 0:00:08]}  Bb1 {[%clk 0:00:12]} 49. Kf4 {[%clk 0:00:09]}  a2 {[%clk 0:00:12]} 50. Bxa2 {[%clk 0:00:09]}  Bxa2 {[%clk 0:00:12]} 51. Kxe4 {[%clk 0:00:10]}  Be6 {[%clk 0:00:11]} 52. Kf4 {[%clk 0:00:09]}  h5 {[%clk 0:00:11]} 53. Be7 {[%clk 0:00:08]}  Bf6 {[%clk 0:00:10]} 54. Bd6 {[%clk 0:00:09]}  Bg5+ {[%clk 0:00:10]} 55. Kf3 {[%clk 0:00:09]}  Bg4+ {[%clk 0:00:10]} 56. Kf2 {[%clk 0:00:08]}  Be6 {[%clk 0:00:10]} 57. Bh2 {[%clk 0:00:08]}  Bh4+ {[%clk 0:00:10]} 58. Kf3 {[%clk 0:00:08]}  Bd8 {[%clk 0:00:09]} 59. Ke4 {[%clk 0:00:07]}  h4 {[%clk 0:00:09]} 60. Kf3 {[%clk 0:00:06]}  h3 {[%clk 0:00:09]} 61. e4 {[%clk 0:00:06]}  Kh5 {[%clk 0:00:09]} 62. e5 {[%clk 0:00:06]}  Bc7 {[%clk 0:00:09]} 63. Kf4 {[%clk 0:00:06]}  Bg4 {[%clk 0:00:08]} 64. Bg3 {[%clk 0:00:06]}  Be6 {[%clk 0:00:06]} 65. Bh2 {[%clk 0:00:07]}  Ba5 {[%clk 0:00:06]} 66. Bg3 {[%clk 0:00:08]}  Bd2+ {[%clk 0:00:06]} 67. Kf3 {[%clk 0:00:08]}  Bd5+ {[%clk 0:00:05]} 68. Ke2 {[%clk 0:00:07]}  Bb4 {[%clk 0:00:04]} 69. Ke3 {[%clk 0:00:07]}  Kg4 {[%clk 0:00:04]} 70. Bh2 {[%clk 0:00:07]}  Be6 {[%clk 0:00:05]} 71. Ke4 {[%clk 0:00:07]}  Bc5 {[%clk 0:00:05]} 72. Bf4 {[%clk 0:00:07]}  Bf2 {[%clk 0:00:05]} 73. Bh2 {[%clk 0:00:07]}  Bg3 {[%clk 0:00:06]} 74. Bg1 {[%clk 0:00:06]}  h2 {[%clk 0:00:07]} 75. Bxh2 {[%clk 0:00:06]}  Bxh2 {[%clk 0:00:07]} 76. Kd4 {[%clk 0:00:06]}  Kf5 {[%clk 0:00:08]} 77. Kd3 {[%clk 0:00:07]}  Bxe5 {[%clk 0:00:09]} 78. Ke3 {[%clk 0:00:08]}  Bd5 {[%clk 0:00:09]} 79. Ke2 {[%clk 0:00:08]}  Ke4 {[%clk 0:00:09]} 80. Kd2 {[%clk 0:00:09]}  Bd4 {[%clk 0:00:10]} 81. Kc2 {[%clk 0:00:10]}  Bc4 {[%clk 0:00:10]} 82. Kd2 {[%clk 0:00:10]}  Kf3 {[%clk 0:00:10]} 83. Ke1 {[%clk 0:00:11]}  Ke3 {[%clk 0:00:09]} 84. Kd1 {[%clk 0:00:11]}  Kd3 {[%clk 0:00:09]} 85. Kc1 {[%clk 0:00:12]}  Bb3 {[%clk 0:00:07]} 86. Kb1 {[%clk 0:00:11]}  Kc3 {[%clk 0:00:06]} 87. Kc1 {[%clk 0:00:12]}  Bc4 {[%clk 0:00:06]} 88. Kb1 {[%clk 0:00:13]}  Be3 {[%clk 0:00:04]} 89. Ka1 {[%clk 0:00:13]}  Kb3 {[%clk 0:00:04]} 90. Kb1 {[%clk 0:00:13]}  Bd3+ {[%clk 0:00:05]} 91. Ka1 {[%clk 0:00:14]}  Bd4# {[%clk 0:00:05]} 0-1


[Site "https://www.chess.com"]

[Event "Titled Tuesday Blitz March 21 Early 2023"]
[White "Rottenwohrer Suarez, Juan"]
[Black "Zanette, Edgard Vinicius"]
[WhiteFideId "32068182"]
[BlackFideId "2109263"]
[WhiteElo "2174"]
[BlackElo "2211"]
[Result "0-1"]
[Round "08"]
[TimeControl "180+2"]
[Date "2023.03.21"]
[WhiteClock "0:00:06"]
[BlackClock "0:00:38"]

1. e4 {[%clk 0:02:43]}  c5 {[%clk 0:02:59]} 2. Nf3 {[%clk 0:02:44]}  d6 {[%clk 0:02:59]} 3. d4 {[%clk 0:02:42]}  cxd4 {[%clk 0:03:00]} 4. Nxd4 {[%clk 0:02:42]}  Nf6 {[%clk 0:03:00]} 5. Nc3 {[%clk 0:02:43]}  a6 {[%clk 0:03:00]} 6. Be2 {[%clk 0:02:42]}  e5 {[%clk 0:02:57]} 7. Nf3 {[%clk 0:02:40]}  Be7 {[%clk 0:02:58]} 8. O-O {[%clk 0:02:35]}  h6 {[%clk 0:02:55]} 9. a4 {[%clk 0:02:32]}  O-O {[%clk 0:02:50]} 10. h3 {[%clk 0:01:59]}  Be6 {[%clk 0:02:47]} 11. Be3 {[%clk 0:01:58]}  Nbd7 {[%clk 0:02:26]} 12. a5 {[%clk 0:01:37]}  Qc7 {[%clk 0:02:17]} 13. Nd5 {[%clk 0:01:33]}  Nxd5 {[%clk 0:02:12]} 14. exd5 {[%clk 0:01:34]}  Bf5 {[%clk 0:02:13]} 15. c4 {[%clk 0:01:33]}  Bg6 {[%clk 0:02:01]} 16. b4 {[%clk 0:01:18]}  f5 {[%clk 0:01:46]} 17. Qb3 {[%clk 0:01:18]}  f4 {[%clk 0:01:46]} 18. Bd2 {[%clk 0:01:18]}  Bf6 {[%clk 0:01:38]} 19. Rac1 {[%clk 0:01:17]}  e4 {[%clk 0:01:39]} 20. Nh2 {[%clk 0:01:17]}  Bg5 {[%clk 0:01:20]} 21. Bg4 {[%clk 0:01:08]}  Ne5 {[%clk 0:01:16]} 22. Be6+ {[%clk 0:01:08]}  Kh7 {[%clk 0:01:15]} 23. c5 {[%clk 0:01:09]}  Rad8 {[%clk 0:01:10]} 24. Bc3 {[%clk 0:01:07]}  Nd3 {[%clk 0:01:06]} 25. cxd6 {[%clk 0:00:50]}  Qxd6 {[%clk 0:00:53]} 26. Rcd1 {[%clk 0:00:50]}  e3 {[%clk 0:00:42]} 27. fxe3 {[%clk 0:00:43]}  fxe3 {[%clk 0:00:42]} 28. Rxf8 {[%clk 0:00:43]}  Rxf8 {[%clk 0:00:41]} 29. Bxg7 {[%clk 0:00:24]}  e2 {[%clk 0:00:40]} 30. Bxf8 {[%clk 0:00:12]}  Qxf8 {[%clk 0:00:40]} 31. Ra1 {[%clk 0:00:06]}  Qf2+ {[%clk 0:00:38]} 32. Kh1 {[%clk 0:00:06]}  e1=Q+ {[%clk 0:00:38]} 0-1


[Site "https://www.chess.com"]

[Event "Titled Tuesday Blitz March 21 Early 2023"]
[White "Fajdetic, Hrvoje"]
[Black "Gonzalez, Francisco Silva"]
[WhiteFideId "14501945"]
[BlackFideId "1512285"]
[WhiteElo "2185"]
[BlackElo "2074"]
[Result "0-1"]
[Round "08"]
[TimeControl "180+2"]
[Date "2023.03.21"]
[WhiteClock "0:00:03"]
[BlackClock "0:01:01"]

1. f4 {[%clk 0:02:41]}  d5 {[%clk 0:02:59]} 2. Nf3 {[%clk 0:02:41]}  c6 {[%clk 0:02:58]} 3. e3 {[%clk 0:02:41]}  a5 {[%clk 0:02:56]} 4. a4 {[%clk 0:02:40]}  Qb6 {[%clk 0:02:55]} 5. d4 {[%clk 0:02:37]}  Bg4 {[%clk 0:02:43]} 6. Be2 {[%clk 0:02:29]}  Bxf3 {[%clk 0:02:43]} 7. Bxf3 {[%clk 0:02:28]}  e6 {[%clk 0:02:43]} 8. O-O {[%clk 0:02:26]}  f5 {[%clk 0:02:42]} 9. Nd2 {[%clk 0:02:08]}  Nf6 {[%clk 0:02:39]} 10. c3 {[%clk 0:01:35]}  h5 {[%clk 0:02:37]} 11. b3 {[%clk 0:01:17]}  c5 {[%clk 0:02:28]} 12. Ba3 {[%clk 0:01:15]}  Nc6 {[%clk 0:02:26]} 13. c4 {[%clk 0:00:52]}  cxd4 {[%clk 0:02:25]} 14. Bxf8 {[%clk 0:00:51]}  dxe3 {[%clk 0:02:23]} 15. c5 {[%clk 0:00:47]}  Qb4 {[%clk 0:02:20]} 16. Bxg7 {[%clk 0:00:38]}  Qd4 {[%clk 0:02:11]} 17. Bxf6 {[%clk 0:00:32]}  Qxf6 {[%clk 0:02:08]} 18. Bxh5+ {[%clk 0:00:24]}  Ke7 {[%clk 0:02:08]} 19. Be2 {[%clk 0:00:21]}  exd2 {[%clk 0:02:07]} 20. Qxd2 {[%clk 0:00:22]}  Qd4+ {[%clk 0:01:57]} 21. Qxd4 {[%clk 0:00:14]}  Nxd4 {[%clk 0:01:57]} 22. Bd1 {[%clk 0:00:13]}  Rac8 {[%clk 0:01:55]} 23. Rc1 {[%clk 0:00:12]}  b6 {[%clk 0:01:56]} 24. c6 {[%clk 0:00:07]}  Kd6 {[%clk 0:01:55]} 25. Rf2 {[%clk 0:00:06]}  Rc7 {[%clk 0:01:49]} 26. Rd2 {[%clk 0:00:06]}  Rxc6 {[%clk 0:01:48]} 27. Rxc6+ {[%clk 0:00:05]}  Nxc6 {[%clk 0:01:47]} 28. Bf3 {[%clk 0:00:05]}  Nb4 {[%clk 0:01:42]} 29. g3 {[%clk 0:00:05]}  Rc8 {[%clk 0:01:38]} 30. Kg2 {[%clk 0:00:05]}  Rc3 {[%clk 0:01:38]} 31. h4 {[%clk 0:00:05]}  Rxb3 {[%clk 0:01:36]} 32. h5 {[%clk 0:00:05]}  Rd3 {[%clk 0:01:36]} 33. Rxd3 {[%clk 0:00:05]}  Nxd3 {[%clk 0:01:34]} 34. h6 {[%clk 0:00:06]}  e5 {[%clk 0:01:18]} 35. h7 {[%clk 0:00:06]}  e4 {[%clk 0:01:18]} 36. h8=Q {[%clk 0:00:06]}  Ne1+ {[%clk 0:01:18]} 37. Kf2 {[%clk 0:00:04]}  Nxf3 {[%clk 0:01:18]} 38. Qf6+ {[%clk 0:00:04]}  Kc5 {[%clk 0:01:18]} 39. Qxf5 {[%clk 0:00:04]}  Nd4 {[%clk 0:01:18]} 40. Qc8+ {[%clk 0:00:04]}  Kb4 {[%clk 0:01:18]} 41. g4 {[%clk 0:00:05]}  b5 {[%clk 0:01:15]} 42. Qb7 {[%clk 0:00:05]}  Kxa4 {[%clk 0:01:14]} 43. Qxd5 {[%clk 0:00:05]}  e3+ {[%clk 0:01:11]} 44. Kxe3 {[%clk 0:00:05]}  Nc2+ {[%clk 0:01:12]} 45. Kd2 {[%clk 0:00:03]}  Nb4 {[%clk 0:01:11]} 46. Qe4 {[%clk 0:00:02]}  Kb3 {[%clk 0:01:11]} 47. Kc1 {[%clk 0:00:02]}  Na2+ {[%clk 0:01:08]} 48. Kb1 {[%clk 0:00:01]}  Nc3+ {[%clk 0:01:08]} 49. Ka1 {[%clk 0:00:02]}  Nxe4 {[%clk 0:01:08]} 50. g5 {[%clk 0:00:03]}  Kc2 {[%clk 0:01:06]} 51. g6 {[%clk 0:00:03]}  b4 {[%clk 0:01:06]} 52. g7 {[%clk 0:00:03]}  Nf6 {[%clk 0:01:06]} 53. Ka2 {[%clk 0:00:03]}  a4 {[%clk 0:01:06]} 54. f5 {[%clk 0:00:03]}  b3+ {[%clk 0:01:02]} 55. Ka3 {[%clk 0:00:03]}  b2 {[%clk 0:01:02]} 56. g8=Q {[%clk 0:00:03]}  Nxg8 {[%clk 0:01:01]} 0-1


[Site "https://www.chess.com"]